[Event "*** Titled Tuesday Blitz"]
[Site "Chess.com"]
[Date "2020.04.21"]
[Round "8"]
[White "lupta_robin"]
[Black "rasmussvane"]
[Result "1/2-1/2"]
[WhiteElo "2540"]
[BlackElo "2843"]
[TimeControl "180+1"]
[EndTime "11:40:31 PDT"]
[Termination "Game drawn - insufficient material"]

1. e4 {[%clk 0:03:00.9]} 1... c6 {[%clk 0:02:59.8]} 2. d4 {[%clk 0:02:59]} 2...
d5 {[%clk 0:03:00.7]} 3. Nc3 {[%clk 0:02:57.6]} 3... dxe4 {[%clk 0:03:00.7]} 4.
Nxe4 {[%clk 0:02:57.5]} 4... Nf6 {[%clk 0:03:01.6]} 5. Nxf6+ {[%clk 0:02:57]}
5... exf6 {[%clk 0:03:02.5]} 6. c3 {[%clk 0:02:55.9]} 6... Bd6 {[%clk
0:03:02.8]} 7. Bd3 {[%clk 0:02:56.3]} 7... O-O {[%clk 0:03:03.4]} 8. Qc2 {[%clk
0:02:56.6]} 8... Re8+ {[%clk 0:03:04]} 9. Ne2 {[%clk 0:02:56.6]} 9... h5 {[%clk
0:03:04.6]} 10. Be3 {[%clk 0:02:55.9]} 10... Nd7 {[%clk 0:03:03.7]} 11. O-O-O
{[%clk 0:02:49.8]} 11... Nf8 {[%clk 0:03:03.6]} 12. Kb1 {[%clk 0:02:43.8]} 12...
Be6 {[%clk 0:03:04]} 13. c4 {[%clk 0:02:38.3]} 13... Rc8 {[%clk 0:03:03.6]} 14.
Nf4 {[%clk 0:02:34.7]} 14... Bxf4 {[%clk 0:02:59.6]} 15. Bxf4 {[%clk 0:02:33.8]}
15... b5 {[%clk 0:02:58.2]} 16. Rhe1 {[%clk 0:02:15.7]} 16... bxc4 {[%clk
0:02:51.6]} 17. Bxc4 {[%clk 0:02:16.6]} 17... Bxc4 {[%clk 0:02:52]} 18. Qxc4
{[%clk 0:02:14.7]} 18... Rxe1 {[%clk 0:02:52.4]} 19. Rxe1 {[%clk 0:02:14.6]}
19... Qd7 {[%clk 0:02:41.2]} 20. Be3 {[%clk 0:02:08.2]} 20... Ne6 {[%clk
0:02:38.2]} 21. Rc1 {[%clk 0:02:04.7]} 21... Rc7 {[%clk 0:02:26.1]} 22. g3
{[%clk 0:01:53.2]} 22... a5 {[%clk 0:01:47.4]} 23. b3 {[%clk 0:01:50.4]} 23...
g6 {[%clk 0:01:39.9]} 24. h3 {[%clk 0:01:31.5]} 24... Kg7 {[%clk 0:01:39.2]} 25.
g4 {[%clk 0:01:31.6]} 25... h4 {[%clk 0:01:37.8]} 26. Kb2 {[%clk 0:01:30.1]}
26... g5 {[%clk 0:01:31.4]} 27. Rc2 {[%clk 0:01:29.2]} 27... Qd6 {[%clk
0:01:29.6]} 28. a3 {[%clk 0:01:08.8]} 28... Qh2 {[%clk 0:01:20.9]} 29. Qa6
{[%clk 0:01:04.4]} 29... Qxh3 {[%clk 0:01:16.8]} 30. Qxa5 {[%clk 0:01:04.2]}
30... Rd7 {[%clk 0:00:55.9]} 31. Qf5 {[%clk 0:00:49.3]} 31... Qh1 {[%clk
0:00:40.6]} 32. f4 {[%clk 0:00:34.7]} 32... gxf4 {[%clk 0:00:36.4]} 33. Bxf4
{[%clk 0:00:29.3]} 33... Rd5 {[%clk 0:00:13.4]} 34. Bh6+ {[%clk 0:00:24.2]}
34... Kxh6 {[%clk 0:00:13.8]} 35. Qxf6+ {[%clk 0:00:24.7]} 35... Kh7 {[%clk
0:00:14.4]} 36. Qxf7+ {[%clk 0:00:22.5]} 36... Ng7 {[%clk 0:00:14.7]} 37. Rxc6
{[%clk 0:00:19.2]} 37... Rg5 {[%clk 0:00:10.6]} 38. Qf6 {[%clk 0:00:16.7]} 38...
Qg2+ {[%clk 0:00:08.6]} 39. Kc3 {[%clk 0:00:16.7]} 39... Qg3+ {[%clk 0:00:05.4]}
40. Kc4 {[%clk 0:00:16.4]} 40... Qxg4 {[%clk 0:00:05.1]} 41. Qh6+ {[%clk
0:00:15.1]} 41... Kg8 {[%clk 0:00:05.5]} 42. Qd6 {[%clk 0:00:09.9]} 42... Qe2+
{[%clk 0:00:05.3]} 43. Kc3 {[%clk 0:00:07.9]} 43... Qe3+ {[%clk 0:00:05.4]} 44.
Kc4 {[%clk 0:00:07.8]} 44... Qe2+ {[%clk 0:00:05.4]} 45. Kc3 {[%clk 0:00:07.8]}
45... Qf3+ {[%clk 0:00:04.8]} 46. Kc4 {[%clk 0:00:07.6]} 46... Qf7+ {[%clk
0:00:04.8]} 47. Kb4 {[%clk 0:00:07.3]} 47... Qd5 {[%clk 0:00:04.5]} 48. Qxd5+
{[%clk 0:00:05.1]} 48... Rxd5 {[%clk 0:00:04.2]} 49. Kc4 {[%clk 0:00:02.3]}
49... Rh5 {[%clk 0:00:03.7]} 50. a4 {[%clk 0:00:02.1]} 50... h3 {[%clk
0:00:03.9]} 51. Rf6 {[%clk 0:00:02.9]} 51... h2 {[%clk 0:00:03.9]} 52. Rf1
{[%clk 0:00:03]} 52... h1=Q {[%clk 0:00:04.3]} 53. Rxh1 {[%clk 0:00:03.9]} 53...
Rxh1 {[%clk 0:00:05]} 54. a5 {[%clk 0:00:04.8]} 54... Ra1 {[%clk 0:00:05.6]} 55.
Kb5 {[%clk 0:00:05.2]} 55... Ne6 {[%clk 0:00:04.9]} 56. d5 {[%clk 0:00:05.5]}
56... Nd4+ {[%clk 0:00:04.7]} 57. Kb6 {[%clk 0:00:05.5]} 57... Nxb3 {[%clk
0:00:03.2]} 58. a6 {[%clk 0:00:06]} 58... Nc5 {[%clk 0:00:03]} 59. a7 {[%clk
0:00:06.2]} 59... Nd7+ {[%clk 0:00:03.3]} 60. Kb7 {[%clk 0:00:06.1]} 60... Nc5+
{[%clk 0:00:03.6]} 61. Kb8 {[%clk 0:00:06.5]} 61... Na6+ {[%clk 0:00:03.1]} 62.
Kb7 {[%clk 0:00:07]} 62... Nc5+ {[%clk 0:00:03]} 63. Kb8 {[%clk 0:00:07.5]}
63... Nd7+ {[%clk 0:00:02]} 64. Kb7 {[%clk 0:00:08]} 64... Rb1+ {[%clk
0:00:02.6]} 65. Kc7 {[%clk 0:00:08.2]} 65... Nb6 {[%clk 0:00:03]} 66. d6 {[%clk
0:00:08.5]} 66... Na8+ {[%clk 0:00:03.5]} 67. Kc8 {[%clk 0:00:08.6]} 67... Kf7
{[%clk 0:00:02.6]} 68. d7 {[%clk 0:00:08.8]} 68... Nb6+ {[%clk 0:00:03.1]} 69.
Kc7 {[%clk 0:00:08.8]} 69... Na8+ {[%clk 0:00:03.5]} 70. Kc8 {[%clk 0:00:09.2]}
70... Rc1+ {[%clk 0:00:03.6]} 71. Kb7 {[%clk 0:00:09]} 71... Rc7+ {[%clk
0:00:03.5]} 72. Kxa8 {[%clk 0:00:09.1]} 72... Rxd7 {[%clk 0:00:03.9]} 73. Kb8
{[%clk 0:00:09.7]} 73... Rd8+ {[%clk 0:00:04.3]} 74. Kc7 {[%clk 0:00:09.4]}
74... Re8 {[%clk 0:00:03.7]} 75. Kb7 {[%clk 0:00:09.4]} 75... Re7+ {[%clk
0:00:04]} 76. Kb8 {[%clk 0:00:09.6]} 76... Re8+ {[%clk 0:00:04.3]} 77. Kb7
{[%clk 0:00:09.8]} 77... Ke6 {[%clk 0:00:04.3]} 78. a8=Q {[%clk 0:00:10]} 78...
Rxa8 {[%clk 0:00:04.8]} 79. Kxa8 {[%clk 0:00:10.9]} 1/2-1/2

[Event "*** Titled Tuesday Blitz"]
[Site "Chess.com"]
[Date "2020.04.21"]
[Round "8"]
[White "TST2014"]
[Black "jonaszmb"]
[Result "0-1"]
[WhiteElo "2594"]
[BlackElo "2479"]
[TimeControl "180+1"]
[EndTime "11:40:33 PDT"]
[Termination "jonaszmb won on time"]

1. d4 {[%clk 0:02:56.4]} 1... d5 {[%clk 0:02:58.1]} 2. c4 {[%clk 0:02:54.9]}
2... Bf5 {[%clk 0:02:58.1]} 3. Nc3 {[%clk 0:02:54]} 3... e6 {[%clk 0:02:58]} 4.
Nf3 {[%clk 0:02:53.3]} 4... Nc6 {[%clk 0:02:58.2]} 5. a3 {[%clk 0:02:49.6]} 5...
Nf6 {[%clk 0:02:57.9]} 6. Bg5 {[%clk 0:02:48.1]} 6... Be7 {[%clk 0:02:48.1]} 7.
e3 {[%clk 0:02:42.7]} 7... Ne4 {[%clk 0:02:44.5]} 8. Bxe7 {[%clk 0:02:38]} 8...
Nxe7 {[%clk 0:02:45.4]} 9. Rc1 {[%clk 0:02:31.5]} 9... O-O {[%clk 0:02:34.2]}
10. Be2 {[%clk 0:02:28.8]} 10... Nxc3 {[%clk 0:02:23.6]} 11. Rxc3 {[%clk
0:02:27.9]} 11... dxc4 {[%clk 0:02:14.1]} 12. Bxc4 {[%clk 0:02:24.6]} 12... Nd5
{[%clk 0:02:11.2]} 13. Rb3 {[%clk 0:02:21.1]} 13... Nb6 {[%clk 0:01:47.7]} 14.
Bd3 {[%clk 0:02:17.2]} 14... Bg4 {[%clk 0:01:35.1]} 15. h3 {[%clk 0:02:14]}
15... Bh5 {[%clk 0:01:30.8]} 16. Be2 {[%clk 0:02:08.7]} 16... Rc8 {[%clk
0:01:15.9]} 17. Rc3 {[%clk 0:01:38.9]} 17... c5 {[%clk 0:01:05.4]} 18. dxc5
{[%clk 0:01:34]} 18... Qxd1+ {[%clk 0:00:58.4]} 19. Bxd1 {[%clk 0:01:33.4]}
19... Nd5 {[%clk 0:00:55.6]} 20. Rc1 {[%clk 0:01:27.9]} 20... b6 {[%clk
0:00:53.6]} 21. c6 {[%clk 0:01:12.4]} 21... Ne7 {[%clk 0:00:50.5]} 22. Ne5
{[%clk 0:00:50.4]} 22... Bxd1 {[%clk 0:00:48.7]} 23. Kxd1 {[%clk 0:00:50.5]}
23... f6 {[%clk 0:00:41.2]} 24. Nf3 {[%clk 0:00:47.3]} 24... Rxc6 {[%clk
0:00:38.1]} 25. Rxc6 {[%clk 0:00:44.5]} 25... Nxc6 {[%clk 0:00:39]} 26. Ke2
{[%clk 0:00:43.3]} 26... e5 {[%clk 0:00:39.4]} 27. Rc1 {[%clk 0:00:42.7]} 27...
Rc8 {[%clk 0:00:30]} 28. Rc3 {[%clk 0:00:42.5]} 28... Kf7 {[%clk 0:00:24.3]} 29.
Nd2 {[%clk 0:00:41.5]} 29... Ke6 {[%clk 0:00:24]} 30. g4 {[%clk 0:00:34.6]}
30... Ne7 {[%clk 0:00:20.6]} 31. Rxc8 {[%clk 0:00:33.4]} 31... Nxc8 {[%clk
0:00:21.5]} 32. Kd3 {[%clk 0:00:33.9]} 32... Nd6 {[%clk 0:00:21.6]} 33. Nc4
{[%clk 0:00:33.6]} 33... Nf7 {[%clk 0:00:20.4]} 34. h4 {[%clk 0:00:30.9]} 34...
g5 {[%clk 0:00:15.2]} 35. h5 {[%clk 0:00:29.6]} 35... Nh6 {[%clk 0:00:13.7]} 36.
f3 {[%clk 0:00:28.7]} 36... f5 {[%clk 0:00:10.4]} 37. gxf5+ {[%clk 0:00:27.2]}
37... Nxf5 {[%clk 0:00:11.3]} 38. a4 {[%clk 0:00:23.2]} 38... Ng3 {[%clk
0:00:11.2]} 39. h6 {[%clk 0:00:21]} 39... Nf5 {[%clk 0:00:11.4]} 40. Ke4 {[%clk
0:00:20.4]} 40... Ng3+ {[%clk 0:00:11.7]} 41. Kd3 {[%clk 0:00:20.6]} 41... Nf5
{[%clk 0:00:12]} 42. Na3 {[%clk 0:00:19.4]} 42... Nxh6 {[%clk 0:00:07.3]} 43.
Nb5 {[%clk 0:00:18.5]} 43... a5 {[%clk 0:00:07.6]} 44. Nc7+ {[%clk 0:00:15.7]}
44... Kd6 {[%clk 0:00:08.1]} 45. Ne8+ {[%clk 0:00:13.7]} 45... Ke7 {[%clk
0:00:07.5]} 46. Nc7 {[%clk 0:00:12.8]} 46... Kd6 {[%clk 0:00:05.8]} 47. Nb5+
{[%clk 0:00:11.7]} 47... Kd7 {[%clk 0:00:04.7]} 48. Ke4 {[%clk 0:00:11.7]} 48...
Nf7 {[%clk 0:00:05]} 49. Kf5 {[%clk 0:00:10.5]} 49... h5 {[%clk 0:00:05.3]} 50.
Kg6 {[%clk 0:00:08.3]} 50... h4 {[%clk 0:00:05.1]} 51. Nc3 {[%clk 0:00:05.9]}
51... h3 {[%clk 0:00:05.4]} 52. Ne2 {[%clk 0:00:06.5]} 52... h2 {[%clk
0:00:05.3]} 53. Ng3 {[%clk 0:00:06.8]} 53... Ke6 {[%clk 0:00:06]} 54. e4 {[%clk
0:00:05.3]} 54... Ke7 {[%clk 0:00:06.2]} 55. Kh5 {[%clk 0:00:03.7]} 55... Nd6
{[%clk 0:00:02.9]} 56. Kg4 {[%clk 0:00:03.6]} 56... Nc4 {[%clk 0:00:01.9]} 57.
b3 {[%clk 0:00:03.8]} 57... Nd2 {[%clk 0:00:02.2]} 58. Kxg5 {[%clk 0:00:03.6]}
58... Nxf3+ {[%clk 0:00:02.5]} 59. Kf5 {[%clk 0:00:04.1]} 59... Nd4+ {[%clk
0:00:02.7]} 60. Kxe5 {[%clk 0:00:04]} 60... Nxb3 {[%clk 0:00:02.9]} 61. Kd5
{[%clk 0:00:04.4]} 61... Nc5 {[%clk 0:00:02.9]} 62. Kc6 {[%clk 0:00:04.2]} 62...
Nxa4 {[%clk 0:00:03.1]} 63. Kb5 {[%clk 0:00:05.1]} 63... Nc3+ {[%clk 0:00:03.4]}
64. Kxb6 {[%clk 0:00:05.4]} 64... a4 {[%clk 0:00:03.9]} 65. Kc5 {[%clk
0:00:05.3]} 65... a3 {[%clk 0:00:04.2]} 66. Kd4 {[%clk 0:00:05.7]} 66... a2
{[%clk 0:00:04.5]} 67. Kxc3 {[%clk 0:00:06.3]} 67... a1=Q+ {[%clk 0:00:04.8]}
68. Kd3 {[%clk 0:00:07.2]} 68... h1=Q {[%clk 0:00:05.1]} 69. Nxh1 {[%clk
0:00:06.8]} 69... Qxh1 {[%clk 0:00:06]} 70. Kd4 {[%clk 0:00:07.2]} 70... Qh4
{[%clk 0:00:06.2]} 71. Ke5 {[%clk 0:00:07.5]} 71... Qg5+ {[%clk 0:00:06.4]} 72.
Kd4 {[%clk 0:00:07.6]} 72... Ke6 {[%clk 0:00:07.3]} 73. e5 {[%clk 0:00:02]}
73... Qf4+ {[%clk 0:00:07.2]} 0-1

[Event "*** Titled Tuesday Blitz"]
[Site "Chess.com"]
[Date "2020.04.21"]
[Round "8"]
[White "vpsetter"]
[Black "yavrukurt40"]
[Result "1-0"]
[WhiteElo "2617"]
[BlackElo "2762"]
[TimeControl "180+1"]
[EndTime "11:40:34 PDT"]
[Termination "vpsetter won by resignation"]

1. e4 {[%clk 0:02:59.1]} 1... c5 {[%clk 0:03:00.2]} 2. Nf3 {[%clk 0:02:59.3]}
2... Nc6 {[%clk 0:03:00.7]} 3. d4 {[%clk 0:02:59.8]} 3... cxd4 {[%clk
0:03:01.6]} 4. Nxd4 {[%clk 0:03:00.7]} 4... g6 {[%clk 0:03:02]} 5. Nc3 {[%clk
0:03:00.9]} 5... Bg7 {[%clk 0:03:02.3]} 6. Nb3 {[%clk 0:03:01.1]} 6... Nf6
{[%clk 0:03:02.1]} 7. Be2 {[%clk 0:03:00.9]} 7... O-O {[%clk 0:03:02.6]} 8. O-O
{[%clk 0:03:01.5]} 8... d6 {[%clk 0:03:03.2]} 9. Bg5 {[%clk 0:03:01.7]} 9... Be6
{[%clk 0:03:03.1]} 10. f4 {[%clk 0:02:54.9]} 10... Rc8 {[%clk 0:03:03.5]} 11.
Kh1 {[%clk 0:02:53.9]} 11... a6 {[%clk 0:03:01.1]} 12. Bf3 {[%clk 0:02:50.3]}
12... b5 {[%clk 0:02:56]} 13. a3 {[%clk 0:02:47.8]} 13... Bc4 {[%clk 0:02:45.9]}
14. Re1 {[%clk 0:02:47]} 14... Nd7 {[%clk 0:02:45.7]} 15. Qd2 {[%clk 0:02:37.5]}
15... Nb6 {[%clk 0:02:31.7]} 16. Rad1 {[%clk 0:02:33.6]} 16... Bxb3 {[%clk
0:02:31.1]} 17. cxb3 {[%clk 0:02:33.4]} 17... Nd4 {[%clk 0:02:32]} 18. Bg4
{[%clk 0:02:15.5]} 18... Rc7 {[%clk 0:02:05.3]} 19. Qe3 {[%clk 0:02:09.2]} 19...
h6 {[%clk 0:01:34.4]} 20. Bh4 {[%clk 0:02:02.1]} 20... g5 {[%clk 0:01:34.4]} 21.
fxg5 {[%clk 0:01:28.2]} 21... e5 {[%clk 0:01:34]} 22. Rf1 {[%clk 0:01:20.7]}
22... hxg5 {[%clk 0:01:28.9]} 23. Bxg5 {[%clk 0:01:19.6]} 23... f6 {[%clk
0:01:27.9]} 24. Bh6 {[%clk 0:01:09.2]} 24... Bxh6 {[%clk 0:01:26.9]} 25. Qxh6
{[%clk 0:01:08.4]} 25... Rg7 {[%clk 0:01:27.8]} 26. Rxd4 {[%clk 0:00:56.3]}
26... Rxg4 {[%clk 0:01:23.2]} 27. Rd3 {[%clk 0:00:53.5]} 27... Qe7 {[%clk
0:01:21]} 28. Rdf3 {[%clk 0:00:40.3]} 28... Qg7 {[%clk 0:01:17.5]} 29. Qh3
{[%clk 0:00:35.5]} 29... Qg6 {[%clk 0:01:10.4]} 30. Rf5 {[%clk 0:00:31.7]} 30...
Kg7 {[%clk 0:01:09.6]} 31. Rh5 {[%clk 0:00:22.5]} 31... Nd7 {[%clk 0:00:49.1]}
32. Rh6 {[%clk 0:00:18.3]} 32... Qxh6 {[%clk 0:00:08.1]} 33. Qxg4+ {[%clk
0:00:18.3]} 33... Kh8 {[%clk 0:00:09]} 34. Qxd7 {[%clk 0:00:18]} 34... Qd2
{[%clk 0:00:09.9]} 35. Qh3+ {[%clk 0:00:17.6]} 35... Kg8 {[%clk 0:00:09.9]} 36.
Qg4+ {[%clk 0:00:16.3]} 36... Kh8 {[%clk 0:00:09.9]} 37. Qh5+ {[%clk 0:00:14]}
37... Kg7 {[%clk 0:00:10.1]} 38. Qe2 {[%clk 0:00:12.2]} 38... Qxe2 {[%clk
0:00:09.4]} 39. Nxe2 {[%clk 0:00:12.2]} 39... Rc8 {[%clk 0:00:10.3]} 40. Nc3
{[%clk 0:00:12.7]} 40... Kg6 {[%clk 0:00:10.5]} 41. Rd1 {[%clk 0:00:12.8]} 41...
Rc6 {[%clk 0:00:08.9]} 42. g3 {[%clk 0:00:12.9]} 42... f5 {[%clk 0:00:09.3]} 43.
exf5+ {[%clk 0:00:13]} 43... Kxf5 {[%clk 0:00:10.2]} 44. Kg2 {[%clk 0:00:13.6]}
44... Ke6 {[%clk 0:00:11.1]} 45. Kf3 {[%clk 0:00:14.1]} 45... a5 {[%clk
0:00:11.6]} 46. h4 {[%clk 0:00:14.3]} 46... b4 {[%clk 0:00:12.1]} 47. axb4
{[%clk 0:00:15]} 47... axb4 {[%clk 0:00:13]} 48. Nd5 {[%clk 0:00:15.5]} 48...
Rc2 {[%clk 0:00:12.8]} 49. Nxb4 {[%clk 0:00:15.4]} 49... Rxb2 {[%clk 0:00:13.4]}
50. Nd5 {[%clk 0:00:15.7]} 50... Rxb3+ {[%clk 0:00:13.4]} 51. Ne3 {[%clk
0:00:16.1]} 51... Rb5 {[%clk 0:00:12.5]} 52. h5 {[%clk 0:00:14.7]} 52... Rb4
{[%clk 0:00:11.7]} 53. h6 {[%clk 0:00:14.8]} 53... Rb8 {[%clk 0:00:12]} 54. g4
{[%clk 0:00:14.9]} 54... Rf8+ {[%clk 0:00:12.5]} 55. Kg3 {[%clk 0:00:14.1]}
55... Rg8 {[%clk 0:00:10.3]} 56. Kh4 {[%clk 0:00:13.5]} 56... e4 {[%clk
0:00:10.4]} 57. g5 {[%clk 0:00:13.7]} 57... Ke5 {[%clk 0:00:10.9]} 58. Rf1
{[%clk 0:00:13.8]} 58... d5 {[%clk 0:00:10.7]} 59. Ng4+ {[%clk 0:00:14.1]} 59...
Kd4 {[%clk 0:00:11.6]} 60. h7 {[%clk 0:00:13.3]} 60... Ra8 {[%clk 0:00:11]} 61.
g6 {[%clk 0:00:13.8]} 61... e3 {[%clk 0:00:11.9]} 62. g7 {[%clk 0:00:09.6]}
62... e2 {[%clk 0:00:11.4]} 63. Re1 {[%clk 0:00:10.1]} 63... Ra1 {[%clk
0:00:10.6]} 1-0

[Event "*** Titled Tuesday Blitz"]
[Site "Chess.com"]
[Date "2020.04.21"]
[Round "8"]
[White "Roenko_Artur"]
[Black "maxip32"]
[Result "1/2-1/2"]
[WhiteElo "2280"]
[BlackElo "2415"]
[TimeControl "180+1"]
[EndTime "11:40:37 PDT"]
[Termination "Game drawn - insufficient material"]

1. e4 {[%clk 0:03:00.9]} 1... c5 {[%clk 0:02:59.7]} 2. d4 {[%clk 0:03:00.5]}
2... cxd4 {[%clk 0:02:59.2]} 3. c3 {[%clk 0:03:01]} 3... d3 {[%clk 0:02:58.6]}
4. Nf3 {[%clk 0:03:00.5]} 4... Nc6 {[%clk 0:02:59.5]} 5. Bxd3 {[%clk 0:03:00.5]}
5... g6 {[%clk 0:03:00.1]} 6. O-O {[%clk 0:02:59.6]} 6... Bg7 {[%clk 0:03:00.4]}
7. Qe2 {[%clk 0:03:00.1]} 7... d6 {[%clk 0:02:59.9]} 8. Rd1 {[%clk 0:03:00.6]}
8... Qc7 {[%clk 0:02:47.6]} 9. h3 {[%clk 0:02:59.4]} 9... Nf6 {[%clk 0:02:47.3]}
10. e5 {[%clk 0:02:54.7]} 10... dxe5 {[%clk 0:02:37.5]} 11. Bb5 {[%clk
0:02:53.3]} 11... O-O {[%clk 0:02:15.9]} 12. Bxc6 {[%clk 0:02:51.8]} 12... Qxc6
{[%clk 0:02:16.8]} 13. Nxe5 {[%clk 0:02:51]} 13... Qe6 {[%clk 0:02:10.1]} 14.
Re1 {[%clk 0:02:38.2]} 14... b6 {[%clk 0:02:03.2]} 15. Nd2 {[%clk 0:02:09.6]}
15... Bb7 {[%clk 0:02:02.6]} 16. Ndf3 {[%clk 0:02:09.3]} 16... Rad8 {[%clk
0:02:00.9]} 17. Bg5 {[%clk 0:01:59.5]} 17... h6 {[%clk 0:01:57.5]} 18. Bxf6
{[%clk 0:01:52.6]} 18... Bxf6 {[%clk 0:01:40.9]} 19. Ng4 {[%clk 0:01:52.1]}
19... Qxe2 {[%clk 0:01:37.2]} 20. Nxf6+ {[%clk 0:01:49.7]} 20... exf6 {[%clk
0:01:38.1]} 21. Rxe2 {[%clk 0:01:50.1]} 21... Bxf3 {[%clk 0:01:37.3]} 22. gxf3
{[%clk 0:01:51]} 22... Rd7 {[%clk 0:01:36.9]} 23. Rae1 {[%clk 0:01:47.1]} 23...
Rfd8 {[%clk 0:01:37.8]} 24. Re7 {[%clk 0:01:45.4]} 24... f5 {[%clk 0:01:28.3]}
25. Re8+ {[%clk 0:01:40.2]} 25... Kg7 {[%clk 0:01:26.1]} 26. Rxd8 {[%clk
0:01:39.6]} 26... Rxd8 {[%clk 0:01:26.2]} 27. Re7 {[%clk 0:01:40]} 27... Rd2
{[%clk 0:01:26.3]} 28. Rxa7 {[%clk 0:01:34.9]} 28... Rxb2 {[%clk 0:01:26.3]} 29.
Kg2 {[%clk 0:01:23.3]} 29... Kf6 {[%clk 0:01:15.5]} 30. a4 {[%clk 0:01:20]}
30... Rb3 {[%clk 0:01:10.7]} 31. Rb7 {[%clk 0:01:11.8]} 31... Rxc3 {[%clk
0:01:04.9]} 32. Rxb6+ {[%clk 0:01:11.8]} 32... Kg5 {[%clk 0:01:05.8]} 33. a5
{[%clk 0:01:11.4]} 33... Ra3 {[%clk 0:01:04.2]} 34. a6 {[%clk 0:01:11.3]} 34...
Kh4 {[%clk 0:00:57]} 35. Rb4+ {[%clk 0:01:07.2]} 35... Kg5 {[%clk 0:00:56.7]}
36. Rb6 {[%clk 0:01:05.5]} 36... Ra2 {[%clk 0:00:54.9]} 37. Rc6 {[%clk
0:01:03.1]} 37... f4 {[%clk 0:00:47.1]} 38. Rb6 {[%clk 0:01:00.5]} 38... f5
{[%clk 0:00:46.7]} 39. Rc6 {[%clk 0:00:54.9]} 39... h5 {[%clk 0:00:33.8]} 40.
Rb6 {[%clk 0:00:53.8]} 40... h4 {[%clk 0:00:33.2]} 41. Rc6 {[%clk 0:00:51]}
41... Kh5 {[%clk 0:00:33.6]} 42. Rf6 {[%clk 0:00:48.8]} 42... g5 {[%clk
0:00:27.9]} 43. Rb6 {[%clk 0:00:43.7]} 43... Ra4 {[%clk 0:00:24]} 44. Rf6 {[%clk
0:00:42.5]} 44... Ra5 {[%clk 0:00:23.9]} 45. Rb6 {[%clk 0:00:42.2]} 45... g4
{[%clk 0:00:23.9]} 46. fxg4+ {[%clk 0:00:40.3]} 46... fxg4 {[%clk 0:00:24.8]}
47. hxg4+ {[%clk 0:00:39.9]} 47... Kxg4 {[%clk 0:00:24.7]} 48. Rg6+ {[%clk
0:00:40.3]} 48... Kf5 {[%clk 0:00:21.5]} 49. Rh6 {[%clk 0:00:38.9]} 49... Kg5
{[%clk 0:00:21.7]} 50. Rb6 {[%clk 0:00:37.3]} 50... Ra3 {[%clk 0:00:22.2]} 51.
Rb5+ {[%clk 0:00:26.9]} 51... Kg6 {[%clk 0:00:20.5]} 52. Rb6+ {[%clk 0:00:27.1]}
52... Kf5 {[%clk 0:00:20.6]} 53. Rb5+ {[%clk 0:00:26.7]} 53... Ke6 {[%clk
0:00:20.6]} 54. Rb6+ {[%clk 0:00:26.5]} 54... Ke5 {[%clk 0:00:20.5]} 55. Rh6
{[%clk 0:00:20.8]} 55... Ke4 {[%clk 0:00:18.3]} 56. Re6+ {[%clk 0:00:17.1]}
56... Kf5 {[%clk 0:00:18.4]} 57. Rh6 {[%clk 0:00:15.7]} 57... Kg5 {[%clk
0:00:17.2]} 58. Rb6 {[%clk 0:00:15.2]} 58... h3+ {[%clk 0:00:17.6]} 59. Kh2
{[%clk 0:00:14.6]} 59... Kg4 {[%clk 0:00:18]} 60. Rg6+ {[%clk 0:00:10.5]} 60...
Kf3 {[%clk 0:00:18]} 61. Kxh3 {[%clk 0:00:10.2]} 61... Kxf2+ {[%clk 0:00:18.2]}
62. Kh2 {[%clk 0:00:09.8]} 62... f3 {[%clk 0:00:17.8]} 63. Re6 {[%clk
0:00:08.7]} 63... Kf1 {[%clk 0:00:17.8]} 64. Rf6 {[%clk 0:00:06.8]} 64... f2
{[%clk 0:00:17.9]} 65. Re6 {[%clk 0:00:06.9]} 65... Ra2 {[%clk 0:00:17.4]} 66.
Kh1 {[%clk 0:00:02.4]} 66... Ra5 {[%clk 0:00:15.3]} 67. Kh2 {[%clk 0:00:02.1]}
67... Ra4 {[%clk 0:00:15.8]} 68. Kg3 {[%clk 0:00:01.7]} 68... Ra3+ {[%clk
0:00:15.5]} 69. Kh2 {[%clk 0:00:01.4]} 69... Ra2 {[%clk 0:00:14.3]} 70. Rf6
{[%clk 0:00:02]} 70... Ke1 {[%clk 0:00:13.3]} 71. Re6+ {[%clk 0:00:02.3]} 71...
Re2 {[%clk 0:00:13.1]} 72. Rxe2+ {[%clk 0:00:02.6]} 72... Kxe2 {[%clk
0:00:13.4]} 73. a7 {[%clk 0:00:03.2]} 73... f1=Q {[%clk 0:00:13.6]} 74. a8=Q
{[%clk 0:00:03.4]} 74... Qf4+ {[%clk 0:00:13.6]} 75. Kh1 {[%clk 0:00:03.2]}
75... Qh4+ {[%clk 0:00:13.3]} 76. Kg2 {[%clk 0:00:03.3]} 76... Qg4+ {[%clk
0:00:12.6]} 77. Kh1 {[%clk 0:00:03.5]} 77... Qh3+ {[%clk 0:00:11.3]} 78. Kg1
{[%clk 0:00:03]} 78... Qg3+ {[%clk 0:00:10.2]} 79. Qg2+ {[%clk 0:00:03.1]} 79...
Qxg2+ {[%clk 0:00:10.8]} 80. Kxg2 {[%clk 0:00:04]} 1/2-1/2